bitfinex-derivatives/quotes_ETHF0:USTF0_20260121
["timestamp","ask_amount","ask_price","bid_price","bid_amount"]
[1768988866365,0.14968901,2971.0,2970.3,0.00335391]
[1768988866565,0.94228372,2970.9,2970.3,0.00335391]
[1768988866767,0.14968901,2971.0,2970.3,0.00335391]
[1768988866965,0.94228372,2970.9,2970.3,0.00335391]
[1768988867164,0.14968901,2971.0,2970.3,0.00335391]
[1768988867364,0.94234168,2970.9,2970.3,0.00335391]
[1768988867567,0.94238885,2970.8,2969.8,0.00504999]
[1768988867763,0.1685,2970.5,2969.8,0.00504999]
[1768988867965,0.30864193,2970.5,2969.8,0.00504999]
[1768988868472,1.46019358,2970.4,2969.8,0.00817061]
[1768988868676,0.30866193,2970.1,2968.8,3.00536189]
[1768988868863,0.30866193,2970.1,2968.6,0.14522753]
[1768988868864,0.94233461,2970.0,2968.6,0.14522753]
[1768988869065,0.30866193,2970.1,2968.6,0.14522753]
[1768988869574,0.30866193,2970.1,2968.6,0.14816343]
[1768988869870,0.30866193,2970.1,2969.1,0.00504999]
[1768988870266,0.16852,2970.1,2969.1,0.00504999]
[1768988871572,0.00504999,2969.9,2969.1,0.00504999]
[1768988872371,0.14014193,2969.6,2968.6,0.0029359]
[1768988873271,0.30869193,2969.6,2968.6,0.0029359]
[1768988873572,0.30869193,2969.6,2968.8,0.00504999]
[1768988876978,0.16855,2969.6,2968.8,0.00504999]
[1768988877778,0.00504999,2969.9,2968.8,0.00504999]
[1768988880472,0.14519192,2969.9,2968.8,0.00504999]
[1768988881277,0.31372192,2969.9,2968.8,0.00504999]
[1768988882374,0.17357999,2969.9,2968.8,0.00504999]
[1768988883979,0.31028788,2969.8,2968.8,0.00504999]
[1768988885180,0.16854,2969.7,2968.8,0.00504999]
[1768988887866,0.14175788,2969.8,2968.8,0.00504999]
[1768988888579,0.16855,2969.5,2968.8,0.00504999]
[1768988890877,0.31030788,2969.5,2968.8,0.00504999]
[1768988894477,0.31031788,2969.4,2968.6,0.0029359]
[1768988894784,0.16856,2969.3,2968.6,0.0029359]
[1768988894978,0.17185376,2969.3,2968.6,0.0029359]
[1768988903092,0.17185376,2969.3,2967.9,0.13709492]
[1768988904100,0.17185376,2969.3,2967.9,0.14094886]
[1768988904294,0.14663294,2969.1,2968.3,0.00504999]
[1768988906494,0.31521294,2969.1,2968.3,0.00504999]
[1768988913293,0.16858,2969.1,2968.3,0.00504999]
[1768988913501,0.00329376,2969.3,2968.3,0.00504999]
[1768988913706,0.94053301,2969.2,2968.3,0.00504999]
[1768988913898,0.94053301,2969.1,2968.3,0.00504999]
[1768988914198,0.00329376,2969.3,2968.3,0.00504999]
[1768988914392,0.16858,2969.1,2968.3,0.00504999]
[1768988915486,1.81410191,2969.7,2968.3,0.14936042]
[1768988915487,1.98264191,2969.7,2968.3,0.14936042]
[1768988915801,1.29271324,2969.6,2968.3,0.14936042]
[1768988916097,1.29271324,2969.5,2968.3,0.14936042]
[1768988916399,0.94338344,2969.4,2968.3,0.14936042]
[1768988916603,0.00432298,2969.4,2968.3,0.14936042]
[1768988917696,0.00432298,2969.4,2968.3,0.00504999]
[1768988917996,1.09003863,2969.3,2968.3,0.00504999]
[1768988918195,1.09002015,2969.2,2968.3,0.00504999]
[1768988918400,1.09003025,2969.1,2968.3,0.00504999]
[1768988918602,0.14663294,2969.1,2968.3,0.00504999]
[1768988921599,0.31520294,2969.1,2968.3,0.00504999]
[1768988922099,0.14663294,2969.0,2968.3,0.00504999]
[1768988922294,0.31521294,2969.0,2967.9,0.00385394]
[1768988923000,0.31521294,2969.0,2967.9,1.11503782]
[1768988923201,0.31521294,2969.0,2968.2,0.00504999]
[1768988926806,0.16858,2969.0,2968.2,0.00504999]
[1768988927508,0.16858,2969.0,2968.4,1.11118388]
[1768988927901,0.16858,2969.0,2968.2,1.11623387]
[1768988930208,0.16858,2969.0,2968.2,0.00504999]
[1768988934806,0.16859,2968.9,2968.2,0.00504999]
[1768988935004,0.16859,2968.9,2967.9,0.00385394]
[1768988940209,0.16859,2968.9,2967.9,1.11503782]
[1768988940606,0.16859,2968.8,2967.9,0.00385394]
[1768988940811,0.13757254,2968.7,2967.9,0.00385394]
[1768988941610,0.13757254,2968.7,2967.4,1.11118388]
[1768988941811,0.00504999,2968.3,2967.2,1.25340236]
[1768988942608,0.00504999,2968.3,2967.2,1.25627439]
[1768988943516,0.00504999,2968.3,2967.2,1.11405591]
[1768988943722,0.31893496,2968.3,2967.2,1.11405591]
[1768988945412,1.26149884,2968.3,2967.2,0.00287203]
[1768988945717,1.42508885,2968.0,2967.2,0.00287203]
[1768988945911,0.31390497,2968.0,2967.2,0.00287203]
[1768988946712,0.14526497,2967.9,2966.6,1.11118388]
[1768988947114,0.14526497,2967.9,2966.8,1.11118388]
[1768988947516,0.14526497,2967.9,2967.0,1.11118388]
[1768988947721,0.14526497,2967.9,2967.0,1.11440053]
[1768988948220,0.16864,2968.0,2967.2,1.11118388]
[1768988953925,0.00504999,2968.3,2967.5,1.11118388]
[1768988954522,0.00504999,2968.3,2967.3,1.25340236]
[1768988956021,0.00504999,2968.3,2967.5,1.11118388]
[1768988956730,0.17366999,2968.3,2967.3,1.25340236]
[1768988956922,0.17366999,2968.3,2967.3,1.11118388]
[1768988964532,0.17366999,2968.3,2967.3,1.26166417]
[1768988966732,0.17366999,2968.3,2967.3,1.11118388]
[1768988966941,0.16863,2968.1,2967.0,0.00321665]
[1768988967238,0.16864,2968.0,2967.0,0.00321665]
[1768988968535,1.11118388,2967.7,2967.0,0.00321665]
[1768988968737,1.27984388,2967.5,2966.2,0.15048029]
[1768988969645,1.27984388,2967.5,2966.3,1.11118388]
[1768988969937,0.16866,2967.5,2966.3,1.11118388]
[1768988970333,0.16866,2967.5,2966.5,1.11118388]
[1768988970638,0.16866,2967.5,2966.7,1.11118388]
[1768988971637,0.16866,2967.5,2966.5,1.11118388]
[1768988972846,0.16866,2967.5,2966.3,1.11118388]
[1768988973346,0.31150824,2967.5,2966.3,1.11118388]
[1768988979448,0.16867,2967.4,2966.3,1.11118388]
[1768988979650,0.16868,2967.3,2966.2,0.00364494]
[1768988979848,0.17232424,2967.3,2966.2,0.00364494]
[1768988980844,0.17232424,2967.3,2966.3,1.11118388]
[1768988983849,0.14284824,2967.9,2966.9,1.11118388]
[1768988984051,1.29808697,2967.8,2966.9,1.11118388]
[1768988984252,0.94991915,2967.7,2966.9,1.11118388]
[1768988984453,0.94991915,2967.6,2966.9,1.11118388]
[1768988984749,0.16868,2967.3,2966.9,1.11118388]
[1768988985059,0.1717664,2967.3,2966.6,0.15048029]
[1768988987749,1.81410191,2968.2,2966.8,0.14478589]
[1768988987955,1.29853476,2968.1,2966.8,0.14478589]
[1768988988145,1.29853476,2968.0,2966.8,0.14478589]
[1768988988450,1.11888529,2967.9,2966.8,0.14478589]
[1768988988649,0.17169393,2967.9,2966.8,0.14478589]
[1768988989252,0.95046002,2967.8,2966.8,0.14478589]
[1768988989453,0.17169393,2967.9,2966.8,0.14478589]
[1768988989649,0.95046002,2967.8,2966.8,0.14478589]
[1768988989945,0.17169393,2967.9,2966.8,0.14478589]
[1768988990152,0.95045937,2967.8,2966.8,0.14478589]
[1768988990345,0.16865,2967.7,2966.8,0.14478589]
[1768988990543,0.16865,2967.7,2966.3,1.11198698]
[1768988990544,0.16866,2967.6,2966.4,0.14478589]
[1768988990748,0.30421889,2967.6,2966.2,0.00364494]
[1768988991251,0.30421889,2967.6,2966.2,0.14843083]
[1768988991650,0.30421889,2967.6,2966.2,0.00364494]
[1768988991845,0.30422889,2967.4,2966.2,0.00364494]
[1768988992158,0.13555889,2967.3,2966.2,0.00364494]
[1768988993143,0.16867,2967.4,2966.2,0.00364494]
[1768988993953,0.16867,2967.4,2966.2,0.14843083]
[1768989012461,0.16867,2967.4,2966.2,2.16743083]
[1768989013264,0.16867,2967.4,2966.2,0.14843083]
[1768989014071,0.95148579,2967.3,2966.2,0.14843083]
[1768989014369,0.16867,2967.4,2966.2,0.14843083]
[1768989014666,0.95148194,2967.3,2966.2,0.14843083]
[1768989014963,0.16867,2967.4,2966.2,0.14843083]
[1768989015159,0.95148288,2967.3,2966.2,0.14843083]
[1768989015361,0.16867,2967.4,2966.2,0.14843083]
[1768989015563,0.95148041,2967.3,2966.2,0.14843083]
[1768989015865,0.16867,2967.4,2966.2,0.14843083]
[1768989016064,0.95148234,2967.3,2966.2,0.14843083]
[1768989016263,0.16867,2967.4,2966.2,0.14843083]
[1768989016468,0.95148141,2967.3,2966.2,0.14843083]
[1768989016662,0.16867,2967.4,2966.2,0.14843083]
[1768989016860,0.95148061,2967.3,2966.2,0.14843083]
[1768989017066,0.16867,2967.4,2966.2,0.14843083]
[1768989017270,0.95149301,2967.3,2966.2,0.14843083]
[1768989017464,0.16867,2967.4,2966.2,0.14843083]
[1768989017666,0.95147878,2967.3,2966.2,0.14843083]
[1768989017962,0.16867,2967.4,2966.2,0.14843083]
[1768989018163,0.95147875,2967.3,2966.2,0.14843083]
[1768989018363,0.16867,2967.4,2966.2,0.14843083]
[1768989018668,0.951618,2967.3,2966.2,0.14843083]
[1768989018867,0.16867,2967.4,2966.2,0.14843083]
[1768989019169,0.95162553,2967.3,2966.2,0.14843083]
[1768989019365,0.16867,2967.4,2966.2,0.14843083]
[1768989019566,0.95180815,2967.3,2966.2,0.14843083]
[1768989019766,0.16867,2967.4,2966.2,0.14843083]
[1768989019969,0.95180627,2967.3,2966.2,0.14843083]
[1768989020168,0.16867,2967.4,2966.2,0.14843083]
[1768989020460,0.95211394,2967.3,2966.2,0.14843083]
[1768989020666,0.16867,2967.4,2966.2,0.14843083]
[1768989020865,0.95211597,2967.3,2966.2,0.14843083]
[1768989021066,0.16867,2967.4,2966.2,0.14843083]
[1768989021266,0.95212023,2967.3,2966.2,0.14843083]
[1768989021468,0.16867,2967.4,2966.2,0.14843083]
[1768989021770,0.95214347,2967.3,2966.2,0.14843083]
[1768989021961,0.16867,2967.4,2966.2,0.14843083]
[1768989022157,0.95214237,2967.3,2966.2,0.14843083]
[1768989022362,0.16867,2967.4,2966.2,0.14843083]
[1768989022556,0.95215213,2967.3,2966.2,0.14843083]
[1768989022761,0.16867,2967.4,2966.2,0.14843083]
[1768989022967,0.95215815,2967.3,2966.2,0.14843083]
[1768989023161,0.16867,2967.4,2966.2,0.14843083]
[1768989023372,0.95215844,2967.3,2966.2,0.14843083]
[1768989023568,0.16867,2967.4,2966.2,0.14843083]
[1768989023770,0.95215734,2967.3,2966.2,0.14843083]
[1768989023973,0.16867,2967.4,2966.2,0.14843083]
[1768989024171,0.95215729,2967.3,2966.2,0.14843083]
[1768989024373,0.16867,2967.4,2966.2,0.14843083]
[1768989024561,0.9521572,2967.3,2966.2,0.14843083]
[1768989024760,0.16867,2967.4,2966.2,0.14843083]
[1768989024965,0.9521582,2967.3,2966.2,0.14843083]
[1768989025166,0.16867,2967.4,2966.2,0.14843083]
[1768989025465,0.95215794,2967.3,2966.2,0.14843083]
[1768989025665,0.16867,2967.4,2966.2,0.14843083]
[1768989025867,0.95215684,2967.3,2966.2,0.14843083]
[1768989026068,0.16867,2967.4,2966.2,0.14843083]
[1768989026361,0.95215899,2967.3,2966.2,0.14843083]
[1768989026561,0.16867,2967.4,2966.2,0.14843083]
[1768989026765,0.95213932,2967.3,2966.2,0.14843083]
[1768989026972,0.16867,2967.4,2966.2,0.14843083]
[1768989027168,0.95214217,2967.3,2966.2,0.14843083]
[1768989027373,0.16867,2967.4,2966.2,0.14843083]
[1768989027568,0.95214117,2967.3,2966.2,0.14843083]
[1768989027867,0.16867,2967.4,2966.2,0.14843083]
[1768989028067,0.95214117,2967.3,2966.2,0.14843083]
[1768989028267,0.31683358,2967.4,2966.2,0.00364494]
[1768989028471,0.95213921,2967.3,2966.2,0.00364494]
[1768989028671,0.31683358,2967.4,2966.2,0.00364494]
[1768989028872,0.95213938,2967.3,2966.2,0.00364494]
[1768989029070,0.31683358,2967.4,2966.2,0.00364494]
[1768989029370,0.95214383,2967.3,2966.2,0.00364494]
[1768989029573,0.31683358,2967.4,2966.2,0.00364494]
[1768989029769,0.95214485,2967.3,2966.2,0.00364494]
[1768989029970,0.31683358,2967.4,2966.2,0.00364494]
[1768989030170,0.95214485,2967.3,2966.2,0.00364494]
[1768989030475,0.31683358,2967.4,2966.2,0.00364494]
[1768989030677,0.95219962,2967.3,2966.2,0.00364494]
[1768989030877,0.31683358,2967.4,2966.2,0.00364494]
[1768989031173,0.95220042,2967.3,2966.2,0.00364494]
[1768989031375,0.31683358,2967.4,2966.2,0.00364494]
[1768989031576,0.95219979,2967.3,2966.2,0.00364494]
[1768989031778,0.31683358,2967.4,2966.2,0.00364494]
[1768989031977,0.95218897,2967.3,2966.2,0.14981878]
[1768989032178,0.16867,2967.4,2966.2,0.14981878]
[1768989032372,0.95218088,2967.3,2966.2,0.14981878]
[1768989032573,0.16867,2967.4,2966.2,0.14981878]
[1768989032781,0.9521571,2967.3,2966.2,0.14981878]
[1768989032981,0.16867,2967.4,2966.2,0.14981878]
[1768989033183,0.95216507,2967.3,2966.2,0.14981878]
[1768989033377,0.16867,2967.4,2966.2,0.14981878]
[1768989033578,0.9518329,2967.3,2966.2,0.14981878]
[1768989033783,0.16867,2967.4,2966.2,0.14981878]
[1768989034078,0.95183477,2967.3,2966.2,0.14981878]
[1768989034281,0.31683358,2967.4,2966.2,0.14981878]
[1768989034584,0.95183483,2967.3,2966.2,0.14981878]
[1768989034881,0.31683358,2967.4,2966.2,0.14981878]
[1768989035078,0.95183575,2967.3,2966.2,0.14981878]
[1768989035279,0.31683358,2967.4,2966.2,0.14981878]
[1768989035478,0.95183911,2967.3,2966.2,0.14981878]
[1768989035679,0.31683358,2967.4,2966.2,0.14981878]
[1768989035877,0.951836,2967.3,2966.2,0.14981878]
[1768989036079,0.31683358,2967.4,2966.2,0.14981878]
[1768989036279,0.95184011,2967.3,2966.2,0.14981878]
[1768989036481,0.31683358,2967.4,2966.2,0.14981878]
[1768989036780,0.95183901,2967.3,2966.2,0.14981878]
[1768989037079,0.31683358,2967.4,2966.2,0.14981878]
[1768989037279,0.95184116,2967.3,2966.2,0.14981878]
[1768989037485,0.31683358,2967.4,2966.2,0.14981878]
[1768989037684,0.95185895,2967.3,2966.2,0.14981878]
[1768989037984,0.31683358,2967.4,2966.2,0.14981878]
[1768989038186,0.95186005,2967.3,2966.2,0.14981878]
[1768989038379,0.31683358,2967.4,2966.2,0.14981878]
[1768989038585,0.95185797,2967.3,2966.2,0.14981878]
[1768989038785,0.31683358,2967.4,2966.2,0.14981878]
[1768989038990,0.95185797,2967.3,2966.2,0.14981878]
[1768989039185,0.31683358,2967.4,2966.2,0.14981878]
[1768989039381,0.95190514,2967.3,2966.2,0.14981878]
[1768989039577,0.31683358,2967.4,2966.2,0.14981878]
[1768989039781,0.95190838,2967.3,2966.2,0.14981878]
[1768989039990,0.31683358,2967.4,2966.2,0.00364494]
[1768989040290,0.95190464,2967.3,2966.2,0.00364494]
[1768989040490,0.31683358,2967.4,2966.2,0.00364494]
[1768989040787,0.95193562,2967.3,2966.2,0.00364494]
[1768989040988,0.31683358,2967.4,2966.2,0.00364494]
[1768989041187,0.95193667,2967.3,2966.2,0.00364494]
[1768989041385,0.31683358,2967.4,2966.2,0.00364494]
[1768989041587,0.95195024,2967.3,2966.2,0.00364494]
[1768989041785,0.31683358,2967.4,2966.2,0.00364494]
[1768989041986,0.95194886,2967.3,2966.2,0.00364494]
[1768989042188,0.31683358,2967.4,2966.2,0.00364494]
[1768989042386,0.95196222,2967.3,2966.2,0.00364494]
[1768989042594,0.31683358,2967.4,2966.2,0.00364494]
[1768989042784,0.95196226,2967.3,2966.2,0.00364494]
[1768989042986,0.31683358,2967.4,2966.2,0.00364494]
[1768989043185,0.95197854,2967.3,2966.2,0.00364494]
[1768989043385,0.31683358,2967.4,2966.2,0.00364494]
[1768989043593,0.9519764,2967.3,2966.2,0.00364494]
[1768989043789,0.31683358,2967.4,2966.2,0.00364494]
[1768989043993,0.95197638,2967.3,2966.2,0.00364494]
[1768989044182,0.31683358,2967.4,2966.2,0.00364494]
[1768989044385,0.95197802,2967.3,2966.2,0.00364494]
[1768989044584,0.31683358,2967.4,2966.2,0.00364494]
[1768989044790,0.95197978,2967.3,2966.2,0.00364494]
[1768989045088,0.31683358,2967.4,2966.2,0.00364494]
[1768989045287,0.95197759,2967.3,2966.2,0.00364494]
[1768989045497,0.31683358,2967.4,2966.2,0.00364494]
[1768989045794,0.95498342,2967.3,2966.2,0.00364494]
[1768989045994,0.31683358,2967.4,2966.2,0.00364494]
[1768989046196,0.95498253,2967.3,2966.2,0.00364494]
[1768989046395,0.31683358,2967.4,2966.2,0.00364494]
[1768989046596,0.95539901,2967.3,2966.2,0.00364494]
[1768989046897,0.13863496,2967.3,2966.2,0.00364494]
[1768989059709,0.13863496,2966.9,2966.2,0.00364494]
[1768989059904,0.13863496,2966.6,2965.3,11.33067484]
[1768989060209,0.00504999,2966.2,2965.6,1.1124444]
[1768989061014,0.00504999,2966.2,2965.6,1.11542879]
[1768989064710,0.30733496,2966.9,2965.6,1.11542879]
[1768989064914,0.1687,2966.9,2966.0,1.1124444]
[1768989065810,0.00504999,2966.7,2965.8,1.1124444]
[1768989066510,0.1521154,2966.7,2965.6,1.11542879]
[1768989067014,0.1521154,2966.7,2965.6,0.00298439]
[1768989067813,0.1521154,2966.7,2965.6,1.11542879]
[1768989071111,0.1521154,2966.7,2965.9,0.00504999]
[1768989073915,0.00504999,2966.7,2966.0,1.1124444]
[1768989074119,0.00504999,2966.7,2966.2,1.1124444]
[1768989075219,0.00504999,2966.7,2966.0,1.1124444]
[1768989075716,0.00504999,2966.7,2965.9,0.00504999]
[1768989076811,0.00504999,2966.7,2966.0,1.1124444]
[1768989083022,0.00504999,2966.7,2965.9,0.00504999]
[1768989091129,0.17375999,2966.7,2965.9,0.00504999]
[1768989091335,1.27762433,2966.6,2965.9,0.00504999]
[1768989091534,0.96907621,2966.5,2965.9,0.00504999]
[1768989092934,0.16872,2966.6,2965.9,0.00504999]
[1768989094434,0.97322573,2966.5,2965.9,0.00504999]
[1768989094635,0.16872,2966.6,2965.9,0.00504999]
[1768989094933,0.97322759,2966.5,2965.9,0.00504999]
[1768989095134,0.16872,2966.6,2965.9,0.00504999]
[1768989095434,0.97319498,2966.5,2965.9,0.00504999]
[1768989095736,0.16872,2966.6,2965.9,0.00504999]
[1768989111538,0.97312526,2966.5,2965.9,0.00504999]
[1768989111739,0.16872,2966.6,2965.9,0.00504999]
[1768989111938,0.97313102,2966.5,2965.9,0.00504999]
[1768989112139,0.16872,2966.6,2965.9,0.00504999]
[1768989112433,0.00504999,2966.7,2965.9,0.00504999]
[1768989112641,0.97322317,2966.6,2965.9,0.00504999]
[1768989112847,0.00504999,2966.7,2965.9,0.00504999]
[1768989113049,0.97320937,2966.6,2965.9,0.00504999]
[1768989113347,0.00504999,2966.7,2965.9,0.00504999]
[1768989113545,0.97321872,2966.6,2965.9,0.00504999]
[1768989113741,0.00504999,2966.7,2965.9,0.00504999]
[1768989113936,0.97321515,2966.6,2965.9,0.00504999]
[1768989114235,0.00504999,2966.7,2965.9,0.00504999]
[1768989114440,0.97321472,2966.6,2965.9,0.00504999]
[1768989114634,0.00504999,2966.7,2965.9,0.00504999]
[1768989114836,0.97321067,2966.6,2965.9,0.00504999]
[1768989115041,0.00504999,2966.7,2965.9,0.00504999]
[1768989115247,0.97322331,2966.6,2965.9,0.00504999]
[1768989115452,0.00504999,2966.7,2965.9,0.00504999]
[1768989115745,0.97323127,2966.6,2965.9,0.00504999]
[1768989115945,0.00504999,2966.7,2965.9,0.00504999]
[1768989116148,0.97322595,2966.6,2965.9,0.00504999]
[1768989116341,0.00504999,2966.7,2965.9,0.00504999]
[1768989116542,0.97326069,2966.6,2965.9,0.00504999]
[1768989116742,0.00504999,2966.7,2965.9,0.00504999]
[1768989117039,0.97327473,2966.6,2965.9,0.00504999]
[1768989117235,0.00504999,2966.7,2965.9,0.00504999]
[1768989117448,0.16869,2967.0,2965.9,0.14253442]
[1768989117648,0.97339428,2966.9,2965.9,0.14253442]
[1768989117948,0.97339428,2966.8,2965.9,0.14253442]
[1768989118136,1.81410191,2967.3,2965.9,0.14253442]
[1768989118339,1.3257694,2967.2,2965.9,0.14253442]
[1768989118542,0.00504999,2966.9,2965.9,1.25540592]
[1768989118741,0.00504999,2966.9,2966.0,0.13748443]
[1768989119051,0.16866,2967.6,2966.0,0.13748443]
[1768989119253,1.32543553,2967.5,2966.0,0.13748443]
[1768989119553,1.32543553,2967.4,2966.0,0.13748443]
[1768989119751,0.9730965,2967.3,2966.0,0.13748443]
[1768989119944,0.00504999,2966.9,2966.0,0.13748443]
[1768989120244,0.16866,2967.6,2966.0,0.13748443]
[1768989120445,1.32450907,2967.5,2966.4,0.13748443]
[1768989120746,0.00305393,2967.9,2966.8,0.13748443]
[1768989122052,0.14625531,2968.6,2967.1,1.1128715]
[1768989122247,0.35157489,2968.5,2967.2,0.13591679]
[1768989122552,0.14625531,2968.6,2967.6,0.00504999]
[1768989123151,0.00504999,2968.4,2967.6,0.00504999]
[1768989130257,0.00367964,2968.6,2967.6,0.00504999]
[1768989130557,0.00367964,2968.6,2967.6,0.14096678]
[1768989132561,0.00367964,2968.6,2967.6,0.00504999]
[1768989132760,0.14993495,2968.6,2967.6,0.00504999]
[1768989133164,0.00504999,2968.4,2967.6,0.00504999]
[1768989136065,0.00367964,2968.6,2967.6,0.1446497]
[1768989136750,0.00367964,2968.6,2967.6,0.00504999]
[1768989137662,0.15266135,2968.6,2967.6,0.00504999]
[1768989139262,0.14898171,2968.4,2966.8,0.13959971]
[1768989139465,0.00367964,2968.6,2966.4,0.13959971]
[1768989139466,0.14898171,2968.0,2966.4,0.13959971]
[1768989140565,0.14898171,2968.0,2966.9,0.00504999]
[1768989140766,0.00504999,2967.7,2966.9,0.00504999]
[1768989143959,0.16863,2968.1,2966.9,0.00504999]
[1768989146768,0.14898171,2968.0,2966.9,0.00504999]
[1768989164381,0.0033461,2967.7,2966.9,0.00504999]
[1768989166896,0.0033461,2967.7,2967.2,1.11175842]
[1768989169389,0.14810806,2967.7,2967.2,1.11175842]
[1768989170999,0.0033461,2967.7,2967.2,1.11175842]
[1768989171698,0.0033461,2967.7,2966.9,1.11680841]
[1768989174498,0.0033461,2967.7,2966.9,0.00504999]
[1768989174703,0.0033461,2967.7,2966.3,1.11175842]
[1768989174704,1.32113701,2967.6,2966.3,1.11175842]
[1768989174896,1.32113701,2967.5,2966.3,1.11175842]
[1768989175092,0.96899485,2967.4,2966.3,1.11175842]
[1768989175295,1.11510452,2967.7,2966.3,1.11175842]
[1768989175603,0.16867,2967.5,2966.3,1.11175842]
[1768989175800,0.96835709,2967.4,2966.7,0.00504999]
[1768989176100,0.16867,2967.5,2966.7,0.00504999]
[1768989176802,1.11510452,2967.7,2966.7,0.00504999]
[1768989176803,0.16867,2967.4,2966.7,0.00504999]
[1768989177006,1.11510452,2967.7,2966.0,1.11175842]
[1768989177007,1.136616,2967.3,2966.0,1.11175842]
[1768989177206,0.16868,2967.2,2966.0,1.11175842]
[1768989178108,0.16868,2967.2,2966.3,0.00504999]
[1768989180407,0.16868,2967.2,2966.3,1.11680841]
[1768989183514,0.16869,2967.1,2966.3,1.11680841]
[1768989184015,0.16869,2967.1,2966.3,0.00504999]
[1768989186014,0.1687,2966.9,2966.3,0.00504999]
[1768989186314,0.1687,2966.9,2965.8,1.11175842]
[1768989189317,0.1687,2966.9,2966.1,1.11175842]
[1768989198619,0.16871,2966.7,2965.8,1.11175842]
[1768989200219,0.16871,2966.7,2966.0,0.00504999]
[1768989201721,0.16873,2966.4,2965.6,0.00298439]
[1768989201915,0.1715926,2966.4,2965.6,0.00298439]
[1768989203224,1.81410191,2966.9,2966.0,1.11175842]
[1768989203518,1.31465066,2966.8,2966.0,1.11175842]
[1768989203719,1.31465066,2966.7,2966.0,1.11175842]
[1768989203921,1.31465066,2966.6,2965.7,1.11175842]
[1768989204117,0.96443305,2966.5,2965.7,1.11175842]
[1768989204315,0.16873,2966.4,2965.6,0.00298439]
[1768989213321,0.96489824,2966.3,2965.6,0.00298439]
[1768989213622,0.16873,2966.4,2965.6,0.00298439]
[1768989213927,0.96637597,2966.3,2965.6,0.00298439]
[1768989214224,0.16873,2966.4,2965.6,0.00298439]
[1768989214426,0.96666033,2966.3,2965.6,1.11474281]
[1768989214628,0.16873,2966.4,2965.6,1.11474281]
[1768989214818,0.96685319,2966.3,2965.6,1.11474281]
[1768989215120,0.16873,2966.4,2965.6,1.11474281]
[1768989215314,0.96685494,2966.3,2965.6,1.11474281]
[1768989215519,0.16873,2966.4,2965.6,1.11474281]
[1768989215822,0.96707131,2966.3,2965.6,1.11474281]
[1768989216023,0.16873,2966.4,2965.6,1.11474281]
[1768989216222,0.96707131,2966.3,2965.6,1.11474281]
[1768989216423,0.16873,2966.4,2965.6,1.11474281]
[1768989216626,0.96707318,2966.3,2965.6,1.11474281]
[1768989216817,0.16873,2966.4,2965.6,1.11474281]
[1768989217017,0.9670743,2966.3,2965.6,1.11474281]
[1768989217224,0.16873,2966.4,2965.6,1.11474281]
[1768989217417,0.96708357,2966.3,2965.6,1.11474281]
[1768989217619,0.16873,2966.4,2965.6,1.11474281]
[1768989217821,0.96708297,2966.3,2965.6,1.11474281]
[1768989218126,0.16873,2966.4,2965.6,1.11474281]
[1768989218326,0.96708844,2966.3,2965.6,1.11474281]
[1768989218525,0.16873,2966.4,2965.6,1.11474281]
[1768989218726,0.96710917,2966.3,2965.6,1.11474281]
[1768989218921,0.16873,2966.4,2965.6,1.11474281]
[1768989219134,0.96710805,2966.3,2965.6,1.11474281]
[1768989219327,0.16873,2966.4,2965.6,1.11474281]
[1768989219625,0.96714409,2966.3,2965.6,1.11474281]
[1768989219826,0.16873,2966.4,2965.6,1.11474281]
[1768989220027,0.96714071,2966.3,2965.6,1.11474281]
[1768989220324,0.16873,2966.4,2965.6,1.11474281]
[1768989220626,0.96718968,2966.3,2965.6,1.11474281]
[1768989220825,0.16873,2966.4,2965.6,1.11474281]
[1768989221023,0.9671886,2966.3,2965.6,1.11474281]
[1768989221224,0.16873,2966.4,2965.6,1.11474281]
[1768989221428,0.9672505,2966.3,2965.6,1.11474281]
[1768989221631,0.16873,2966.4,2965.6,1.11474281]
[1768989221830,0.9672514,2966.3,2965.6,1.11474281]
[1768989222028,0.16873,2966.4,2965.6,1.11474281]
[1768989222330,0.9672505,2966.3,2965.6,1.11474281]
[1768989222531,0.16873,2966.4,2965.6,1.11474281]
[1768989222730,0.96732264,2966.3,2965.6,1.11474281]
[1768989222930,0.16873,2966.4,2965.6,1.11474281]
[1768989223231,0.96732264,2966.3,2965.6,1.11474281]
[1768989223425,0.16873,2966.4,2965.6,1.11474281]
[1768989223728,0.96741277,2966.3,2965.6,1.11474281]
[1768989223928,0.16873,2966.4,2965.6,1.11474281]
[1768989224230,0.96741479,2966.3,2965.6,1.11474281]
[1768989224421,2.27980071,2966.2,2964.9,0.1974476]
[1768989224618,0.16877,2965.7,2964.4,1.30920602]
[1768989224834,0.16877,2965.7,2964.5,0.1974476]
[1768989225531,0.16877,2965.7,2964.5,0.20066565]
[1768989225829,0.00505893,2965.4,2964.5,0.20066565]
[1768989228230,0.00505893,2965.4,2964.5,0.00321805]
[1768989230833,0.17383893,2965.4,2964.5,0.00321805]
[1768989231229,0.28029178,2965.4,2963.8,0.28552607]
[1768989231434,0.16881,2965.0,2963.8,0.28552607]
[1768989232237,0.16881,2964.9,2963.8,0.28811898]
[1768989235033,0.00505893,2965.4,2963.8,0.28811898]
[1768989235233,0.96906829,2965.3,2964.0,0.28552607]
[1768989235434,0.17383893,2965.4,2964.0,0.28552607]
[1768989235739,0.96879157,2965.3,2964.0,0.28552607]
[1768989235940,0.17383893,2965.4,2964.0,0.28552607]
[1768989236140,0.96879149,2965.3,2964.0,0.28552607]
[1768989236343,0.16879,2965.3,2964.0,0.28552607]
[1768989239841,0.1688,2965.2,2964.0,0.28552607]
[1768989248451,0.29647986,2965.4,2963.8,0.00259291]
[1768989248747,1.26287782,2965.3,2963.8,0.00259291]
[1768989248947,0.97145689,2965.2,2963.8,0.00259291]
[1768989249243,0.29142093,2965.3,2963.8,0.00259291]
[1768989249450,0.97164934,2965.2,2963.8,0.00259291]
[1768989249652,0.16881,2965.0,2963.8,0.00259291]
[1768989252856,0.16881,2965.0,2963.8,0.32443231]
[1768989255351,0.97413082,2964.9,2963.8,0.32443231]
[1768989255555,0.16881,2965.0,2963.8,0.32443231]
[1768989255756,0.97412969,2964.9,2963.8,0.32443231]
[1768989255956,0.16881,2965.0,2963.8,0.32443231]
[1768989256255,0.97412969,2964.9,2963.8,0.32443231]
[1768989256456,0.16881,2965.0,2963.8,0.32443231]
[1768989256659,0.32889137,2964.8,2963.8,0.00259291]
[1768989256853,1.32499333,2964.7,2963.8,0.00259291]
[1768989257052,0.97435279,2964.6,2963.8,0.00259291]
[1768989257253,0.97435279,2964.5,2963.8,0.00259291]
[1768989257459,0.97435279,2964.4,2963.8,0.00259291]
[1768989257649,0.00240714,2964.5,2963.3,0.33204696]
[1768989257852,0.97412909,2964.4,2963.3,0.33204696]
[1768989258054,0.00240714,2964.5,2963.3,0.33204696]
[1768989258453,0.97410446,2964.4,2963.3,0.33204696]
[1768989258749,0.16884,2964.4,2963.3,0.33620029]
[1768989270060,0.16885,2964.2,2963.3,0.00415333]
[1768989270261,0.16886,2964.0,2963.3,0.00415333]